Cogmind - Beta 13 @@@ ROGUE MODE // 2024.05.11 @ 05:47:53 Player: A Moose Result: Destroyed by H-66 Slayer with Gauss Rifle Performance ------------- Evolutions (3) 1500 Regions Visited (8) 1600 Robots Destroyed (136) 680 Value Destroyed (4098) 4098 Prototype IDs (6) 120 Alien Tech Used (0) 0 Bonus (-8) -8 TOTAL SCORE: 7990 Bonus ------- High Alert Combat Kills 278 Follower Combat Kills 45 Friendly Fire -331 Cogmind --------- Core Integrity 0/700 Matter 300/300 Energy 86/100 System Corruption 0% Temperature Cool (0) Movement Core (1400) Ox27 Location -7/Lower Caves Parts ------- > --- POWER (1) -------- (None) > --- PROPULSION (2) --- (None) > --- UTILITY (7) ------ Huge Storage Unit Machine Analyzer Improved Signal Interpreter Advanced Targeting Computer Hacking Suite > --- WEAPON (3) ------- Chainsword > --- INVENTORY (25) --- Light Nuclear Core Light Nuclear Core Micro Nuclear Core Compact Wheel Large Battery (200) Compact Battery (200) Large Matter Pod (150) Target Analyzer Core Analyzer System Restoration Module Bomb Drone Bay (14/16) Advanced Beam Rifle Plasma Cannon Minigun Advanced Assault Cannon Heavy Missile Launcher Datajack Remote Datajack Peak State ------------ > --- POWER ------------ Nuclear Core > --- PROPULSION ------- Armored Huge Wheel > --- UTILITY ---------- Improved Cooling System Huge Storage Unit Machine Analyzer Improved Signal Interpreter Advanced Targeting Computer Hardened Light Armor Plating Improved Light Armor Plating > --- WEAPON ----------- Heavy Laser Heavy Laser Bore Cannon > --- INVENTORY -------- Improved Ion Engine Light Nuclear Core Micro Nuclear Core Wheel Wheel Wheel Wheel Compact Wheel Armored Wheel Improved Heat Sink Large Battery Large Matter Pod Target Analyzer Improved Light Armor Plating System Restoration Module Bomb Drone Bay Advanced Beam Rifle Heavy Laser Heavy Laser Flak Gun Grenade Launcher Datajack Remote Datajack Chainsword [Rating: 50] Favorites ----------- Power Ion Engine Engine Ion Engine Power Core Light Nuclear Core Propulsion Wheel Treads Light Treads Wheel Wheel Utility Huge Storage Unit Device Improved Cooling System Storage Huge Storage Unit Processor Advanced Targeting Computer Hackware Hacking Suite Protection Improved Light Armor Plating Weapon Improved Assault Rifle Energy Gun Heavy Laser Ballistic Gun Improved Assault Rifle Ballistic Cannon Bore Cannon Launcher Grenade Launcher Slashing Weapon Chainsword Build | -11 -10 -10 -9 -9 -9 -7 -7 -7 ------- Run | Yrd Mat Min Mat Sto Rec Fac Low Low Slots Evolved 6 | . . . 2 . . 4 . . Power . | . . . . . . . . . Propulsion . | . . . . . . . . . Utility 5 | . . . 2 . . 3 . . Weapon 1 | . . . . . . 1 . . Parts Attached 100 | 6 1 5 24 8 2 34 15 5 Power 15 | 1 . . 4 1 . 5 3 1 Engine 9 | 1 . . 4 1 . 1 2 . Core 6 | . . . . . . 4 1 1 Reactor . | . . . . . . . . . Propulsion 16 | 2 . 2 4 2 . 1 3 2 Treads 2 | 2 . . . . . . . . Leg . | . . . . . . . . . Wheel 14 | . . 2 4 2 . 1 3 2 Hover . | . . . . . . . . . Flight . | . . . . . . . . . Utility 32 | 1 . 2 10 . 2 14 3 . Device 12 | . . 1 6 . . 3 2 . Storage 2 | 1 . . 1 . . . . . Processor 4 | . . . 1 . . 3 . . Hackware 2 | . . . . . . 2 . . Protection 12 | . . 1 2 . 2 6 1 . Artifact . | . . . . . . . . . Weapon 37 | 2 1 1 6 5 . 14 6 2 Energy Gun 13 | 1 . . 1 1 . 7 3 . Energy Cannon . | . . . . . . . . . Ballistic Gun 13 | 1 . . 5 2 . 3 1 1 Ballistic Cannon 4 | . 1 . . 2 . 1 . . Launcher 6 | . . 1 . . . 3 2 . Special Weapon . | . . . . . . . . . Impact Weapon . | . . . . . . . . . Slashing Weapon 1 | . . . . . . . . 1 Piercing Weapon . | . . . . . . . . . Special Melee Weapon . | . . . . . . . . . Unidentified Prototypes 3 | . . . 3 . . . . . Parts Lost 43 | . . 2 9 2 2 9 7 12 Power 7 | . . . 1 1 . 1 2 2 Propulsion 12 | . . 1 4 1 . . 2 4 Utility 14 | . . 1 3 . 2 4 2 2 Weapon 10 | . . . 1 . . 4 1 4 Highest Loss Streak 12 | . . 1 6 2 2 3 3 12 To Critical Strikes . | . . . . . . . . . Average Slot Usage (%) 93 | . 85 91 92 97 100 92 93 92 Engine 7 | . 14 14 10 9 11 2 3 5 Core 1 | . . . . . . 4 3 . Treads 2 | . 28 14 . . . . . . Wheel 12 | . . 8 20 20 22 8 8 13 Device 7 | . . 3 12 11 2 4 12 14 Storage 9 | . 14 14 11 11 11 7 7 7 Processor 14 | . . . 4 11 11 20 23 23 Hackware 2 | . . . . . . 3 7 7 Protection 10 | . . 7 11 11 19 14 2 . Energy Gun 7 | . . . 3 2 . 7 22 18 Ballistic Gun 12 | . 14 14 17 17 22 10 . 1 Ballistic Cannon 2 | . 13 5 . 2 . 2 . . Launcher 1 | . . 8 1 . . 1 . . Naked Turns . | . . . . . . . . . Heaviest Build 114 | 12 14 17 96 101 99 114 109 102 Greatest Support 40 | 40 40 40 26 22 22 28 28 22 Greatest Overweight (x) 10 | . . 1 9 7 4 4 10 7 Average Overweight (x) 3 | . . . 3 4 4 3 7 4 Largest Inventory Capacity 25 | 8 8 8 25 25 25 25 25 25 Average Capacity 22 | 5 8 8 24 25 25 25 25 25 Most Carried 25 | 5 7 8 20 25 25 25 25 24 Average Carried 20 | 2 4 7 13 23 23 24 23 23 Final Capacity 25 | 8 8 8 25 25 25 25 25 25 Final Carried 25 | 2 7 8 20 25 24 25 24 19 Class Distribution -------------------- 33% | Mutant 21% | Tank 16% | Scavenger-Gunner 16% | Scavenger-Mutant 9% | Scavenger-Tank Dominant Class ---------------- Mutant | -10/Materials Mutant | -10/Mines Scavenger-Mutant | -9/Materials Scavenger-Mutant | -9/Storage Mutant | -9/Recycling Tank | -7/Factory Scavenger-Gunner | -7/Lower Caves Scavenger-Gunner | -7/Lower Caves Resources | -11 -10 -10 -9 -9 -9 -7 -7 -7 ----------- Run | Yrd Mat Min Mat Sto Rec Fac Low Low Matter Collected 3041 | 208 109 343 533 392 94 1043 244 75 Remotely . | . . . . . . . . . Salvage Created 4469 | . 90 61 1132 877 114 1664 337 194 Parts 254 | . 4 2 79 58 10 76 14 11 Haulers Intercepted 4 | . . . 2 2 . . . . Recyclers Shooed 3 | . 1 . 2 . . . . . Parts Field Recycled . | . . . . . . . . . Retrieved Matter . | . . . . . . . . . Parts Self-Destructed 32 | . . . . . . . 16 16 Prevented . | . . . . . . . . . Kills | -11 -10 -10 -9 -9 -9 -7 -7 -7 ------- Run | Yrd Mat Min Mat Sto Rec Fac Low Low Combat Hostiles Destroyed 105 | . 3 10 22 16 2 34 14 4 Melee 1 | . . . . . . . . 1 Guns 62 | . . . 15 13 2 19 10 3 Cannons 12 | . 3 2 . 3 . 4 . . AOE 29 | . . 8 7 . . 10 4 . Classes Destroyed 16 | . 1 2 6 2 . 4 . 1 Worker 9 | . . . 6 1 . 2 . . Builder 4 | . . . . 1 1 2 . . Hauler 4 | . . . 2 2 . . . . Recycler 9 | . . . 3 2 . 4 . . Operator 3 | . . . . 2 . 1 . . Watcher 9 | . . . 5 2 . 2 . . Swarmer 33 | . . . 8 6 . 9 10 . Grunt 38 | . 3 . 9 6 . 16 4 . Brawler 1 | . . . . . . 1 . . Duelist 1 | . . . . . . 1 . . Sentry 15 | . . . 5 4 2 4 . . Demolisher 1 | . . 1 . . . . . . Specialist 2 | . . . . . . . . 2 Hunter 4 | . . . . . . 3 . 1 Programmer 3 | . . . . . . 2 . 1 Assembled 9 | . . 9 . . . . . . Best Kill Streak 7 | . 2 7 5 6 2 6 4 2 Combat Bots Only 7 | . 2 7 5 5 1 4 4 2 Max Kills in Single Turn 4 | . 1 2 3 2 2 4 3 1 Gunslinging 1 | . . . . . . . 1 . Exploded 3 | . . 2 3 . . 3 3 . Melee 1 | . . . . . . . . 1 Uniques/NPCs Destroyed . | . . . . . . . . . Combat | -11 -10 -10 -9 -9 -9 -7 -7 -7 -------- Run | Yrd Mat Min Mat Sto Rec Fac Low Low Hostile Shots Fired 656 | . 10 24 107 65 20 277 63 90 Missed 189 | . 2 5 19 21 5 96 21 20 Damage Taken 6490 | . 90 574 1324 460 229 2061 709 1043 Core 1237 | . 24 147 284 41 30 261 139 311 Absorbed by Shields . | . . . . . . . . . Redirected to Shielding 57 | . . . 57 . . . . . Regen/Repaired (Parts) 53 | . . . 53 . . . . . Core Remaining (%) 47 | 100 . 31 . . 11 . . . Volleys Fired 319 | 2 14 17 81 53 14 96 25 17 Largest 3 | 2 2 2 2 2 2 3 3 3 Hottest 207 | 60 55 55 85 113 46 207 207 207 Shots Fired 700 | 4 28 32 161 98 28 259 65 25 Gun 601 | 4 14 16 158 82 28 212 62 25 Cannon 75 | . 14 8 . 16 . 37 . . Launcher 24 | . . 8 3 . . 10 3 . Special . | . . . . . . . . . Kinetic 495 | 2 28 24 126 86 28 187 2 12 Thermal 181 | 2 . . 32 12 . 62 60 13 Explosive 24 | . . 8 3 . . 10 3 . Electromagnetic . | . . . . . . . . . Robot Hit Streak 36 | 1 5 6 18 12 5 36 7 9 Robot Miss Streak 7 | 2 2 4 4 2 2 7 6 4 Penetration Max 1 | . . . . 1 . 1 . . Secondary Targets 7 | . . . . 1 . 2 4 . Max Gunslinging Chain 2 | . . . . 1 . 1 2 . Shots Hit Robots 467 | 1 21 22 107 62 21 172 39 22 Core Hits 312 | . 9 26 84 31 6 114 22 20 Critical Kills 8 | . . . 1 1 . 6 . . Critical Parts Destroyed 16 | . . 1 . 4 . 11 . . Critical Strikes 28 | . . 1 1 6 . 19 1 . Burn 2 | . . . . . . 1 1 . Destroy 26 | . . 1 1 6 . 18 . . Melee Attacks 2 | . . . . . . . . 2 Impact . | . . . . . . . . . Slashing 2 | . . . . . . . . 2 Piercing . | . . . . . . . . . Sneak Attacks . | . . . . . . . . . Combat Hostiles . | . . . . . . . . . Follow-up Attacks . | . . . . . . . . . Damage Inflicted 10258 | 10 280 528 1774 1106 327 4724 1132 377 Guns 6267 | 10 68 92 1426 857 327 2430 710 347 Cannons 1083 | . 212 101 . 249 . 521 . . Explosions 2878 | . . 335 348 . . 1773 422 . Melee 30 | . . . . . . . . 30 Ramming . | . . . . . . . . . Kinetic 5340 | 10 280 193 1015 1018 327 2290 32 175 Thermal 2944 | . . . 411 88 . 1595 678 172 Explosive 1831 | . . 335 348 . . 726 422 . Electromagnetic 113 | . . . . . . 113 . . Impact . | . . . . . . . . . Slashing 30 | . . . . . . . . 30 Piercing . | . . . . . . . . . Highest Corruption 4 | . . 4 . . . . . . Average Corruption 4 | . . 4 . . . . . . Corruption Purged . | . . . . . . . . . Corruption Blocked . | . . . . . . . . . Effects 3 | . . 3 . . . . . . Message Errors 1 | . . 1 . . . . . . Heat Flow Errors 1 | . . 1 . . . . . . Data Loss (minor) 1 | . . 1 . . . . . . Overload Shots . | . . . . . . . . . Overflow Damage 223 | . . . 37 11 . 175 . . Projectiles 11 | . . . . 11 . . . . Explosions 212 | . . . 37 . . 175 . . Melee . | . . . . . . . . . Knockbacks 11 | . 4 3 . . . 4 . . Impact . | . . . . . . . . . Kinetic 10 | . 3 3 . . . 4 . . Secondary 1 | . 1 . . . . . . . Self-Inflicted Damage 192 | . . 106 56 . . 30 . . Shots 9 | . . 6 2 . . 1 . . Rammed . | . . . . . . . . . Targets Rammed . | . . . . . . . . . Kicked . | . . . . . . . . . Crushed . | . . . . . . . . . Highest Temperature 303 | 20 40 103 40 210 14 303 238 . Average Temperature 65 | 15 20 18 12 63 7 88 90 . Received Heat Transfer 1539 | . 54 . 447 144 63 624 207 . Effects 2 | . . . . . . 2 . . Energy Bleed 2 | . . . . . . 2 . . Siege Activations . | . . . . . . . . . Robots Corrupted . | . . . . . . . . . Combat Hostiles . | . . . . . . . . . Parts Fried 1 | . . . . . . . 1 . Impact Corruptions . | . . . . . . . . . Robots Melted 1 | . . . . . . 1 . . Combat Hostiles 1 | . . . . . . 1 . . Parts Melted 4 | . . . . . . 3 1 . Heat Transferred 4327 | . . . 515 222 . 1851 1406 333 Parts Sabotaged . | . . . . . . . . . Parts Stolen . | . . . . . . . . . Parts Stripped . | . . . . . . . . . Power Chain Reactions . | . . . . . . . . . Alert | -11 -10 -10 -9 -9 -9 -7 -7 -7 ------- Run | Yrd Mat Min Mat Sto Rec Fac Low Low Peak Influence 1052 | . 85 50 488 580 236 1052 . . Initial 226 | . . 3 . 168 226 . . . Average 276 | . 18 27 357 354 110 402 . . Maximum Alert Level 3 | . . . 2 2 1 3 . . Low Security (%) 37 | 100 100 100 11 12 59 19 . . Level 1 36 | . . . 37 56 40 43 . . Level 2 17 | . . . 50 31 . 14 . . Level 3 8 | . . . . . . 22 . . Level 4 . | . . . . . . . . . Level 5 . | . . . . . . . . . High Security . | . . . . . . . . . Max Security . | . . . . . . . . . Squads Dispatched 18 | . 1 . 3 3 . 11 . . Investigation 7 | . 1 . 2 1 . 3 . . Extermination 3 | . . . . . . 3 . . Reinforcement 7 | . . . 1 2 . 4 . . Assault . | . . . . . . . . . Garrison 1 | . . . . . . 1 . . Intercept . | . . . . . . . . . Searches Triggered . | . . . . . . . . . Construction Impeded 1 | . . . . . . 1 . . Haulers Reinforced 1 | . . . . . . 1 . . Active Scanning Responses . | . . . . . . . . . Cargo Convoy Interrupts . | . . . . . . . . . Stealth | -11 -10 -10 -9 -9 -9 -7 -7 -7 --------- Run | Yrd Mat Min Mat Sto Rec Fac Low Low Distress Signals 5 | . . . 4 . . 1 . . Communications Jammed . | . . . . . . . . . Distress Signals . | . . . . . . . . . Times Spotted 140 | . 4 11 36 22 2 45 15 5 Peak Tracking Total 5 | . 3 3 5 4 1 4 4 3 Tactical Retreats 6 | . . . 2 2 . 2 . . Traps | -11 -10 -10 -9 -9 -9 -7 -7 -7 ------- Run | Yrd Mat Min Mat Sto Rec Fac Low Low Traps Triggered 11 | . 1 . 2 1 . 7 . . Indirectly . | . . . . . . . . . Trap Hack Attempts . | . . . . . . . . . Triggered . | . . . . . . . . . Disarmed . | . . . . . . . . . Reprogrammed . | . . . . . . . . . Reused . | . . . . . . . . . Traps Extracted . | . . . . . . . . . Installed . | . . . . . . . . . Triggered 2 | . . . . . . . 2 . Machines | -11 -10 -10 -9 -9 -9 -7 -7 -7 ---------- Run | Yrd Mat Min Mat Sto Rec Fac Low Low Machines Disabled 20 | . . . 1 1 . 18 . . Max in Single Turn 5 | . . . 1 1 . 5 . . Garrison Access 2 | . . . . . . 2 . . Machines Repaired . | . . . . . . . . . Machines Dismantled . | . . . . . . . . . Machines Sabotaged . | . . . . . . . . . Overloaded Fab Kills . | . . . . . . . . . Hacking | -11 -10 -10 -9 -9 -9 -7 -7 -7 --------- Run | Yrd Mat Min Mat Sto Rec Fac Low Low Machines Accessed 33 | . 2 2 6 5 6 12 . . Terminals 20 | . 2 1 3 3 6 5 . . Fabricators 4 | . . . . . . 4 . . Repair Stations 1 | . . . 1 . . . . . Recycling Units 2 | . . . . 2 . . . . Scanalyzers 2 | . . . 2 . . . . . Garrison Access 3 | . . . . . . 3 . . Total Hacks 107 | . 5 2 35 16 17 32 . . Successful 61 | . 4 2 28 8 6 13 . . Failed 45 | . . . 7 8 11 19 . . Catastrophic 7 | . . . 1 1 1 4 . . Database Lockouts 1 | . 1 . . . . . . . Manual 44 | . 3 2 7 9 6 17 . . Terminals 57 | . 5 1 8 13 17 13 . . Fabricators 11 | . . . . . . 11 . . Repair Stations 2 | . . . 2 . . . . . Recycling Units 3 | . . . . 3 . . . . Scanalyzers 25 | . . . 25 . . . . . Garrison Access 8 | . . . . . . 8 . . Terminal Hacks 16 | . 3 2 . 4 3 4 . . Record 1 | . . . . . 1 . . . Robot Schematic 1 | . . . . . 1 . . . Robot Analysis 3 | . 1 1 . . . 1 . . Prototype ID Bank 3 | . 1 . . 1 1 . . . Open Door 1 | . . 1 . . . . . . Branch Access Points 2 | . 1 . . 1 . . . . Emergency Access Points 1 | . . . . 1 . . . . Unreport Threat 1 | . . . . . . 1 . . Locate Traps 1 | . . . . 1 . . . . Zone Layout 2 | . . . . . . 2 . . Fabricator Hacks 1 | . . . . . . 1 . . Build 1 | . . . . . . 1 . . Repair Station Hacks 2 | . . . 2 . . . . . Scan Component 1 | . . . 1 . . . . . Repair 1 | . . . 1 . . . . . Recycling Unit Hacks 1 | . . . . 1 . . . . Report Inventory 1 | . . . . 1 . . . . Scanalyzer 24 | . . . 24 . . . . . Insert Component 12 | . . . 12 . . . . . Analyze 12 | . . . 12 . . . . . Garrison Access Hacks . | . . . . . . . . . Unauthorized Hacks 17 | . 1 . 2 3 3 8 . . Terminals 10 | . 1 . 2 2 3 2 . . Botnet 10 | . 1 . 2 2 3 2 . . Fabricators 4 | . . . . . . 4 . . Fabnet 4 | . . . . . . 4 . . Repair Stations . | . . . . . . . . . Recycling Units 1 | . . . . 1 . . . . Reject 1 | . . . . 1 . . . . Scanalyzers . | . . . . . . . . . Garrison Access 2 | . . . . . . 2 . . Jam 2 | . . . . . . 2 . . Data Cores Recovered . | . . . . . . . . . Used . | . . . . . . . . . Hacking Detections 29 | . 1 1 6 4 5 12 . . Full Trace Events 1 | . . . . . . 1 . . Feedback Events . | . . . . . . . . . Feedback Blocked . | . . . . . . . . . Robot Schematics Acquired 1 | . . . . . 1 . . . Robots Built 4 | . . . . . . 4 . . Authchips . | . . . . . . . . . Time 134 | . . . . . . 134 . . Total Robot Build Rating 16 | . . . . . . 16 . . Part Schematics Acquired 10 | . . . 10 . . . . . Parts Built . | . . . . . . . . . Authchips . | . . . . . . . . . Time . | . . . . . . . . . Total Part Build Rating . | . . . . . . . . . Parts Repaired 1 | . . . 1 . . . . . Time 26 | . . . 26 . . . . . Parts Recycled . | . . . . . . . . . Recycled Matter . | . . . . . . . . . Retrieved Matter . | . . . . . . . . . Retrieved Components . | . . . . . . . . . Parts Scanalyzed 10 | . . . 10 . . . . . Part Schematics Acquired 10 | . . . 10 . . . . . Parts Damaged . | . . . . . . . . . Bothacking | -11 -10 -10 -9 -9 -9 -7 -7 -7 ------------ Run | Yrd Mat Min Mat Sto Rec Fac Low Low Used RIF Installer . | . . . . . . . . . Robots Hacked . | . . . . . . . . . Non-combat . | . . . . . . . . . Combat . | . . . . . . . . . Robot Hacks Applied . | . . . . . . . . . Relay Couplers Released . | . . . . . . . . . Fabnet Peak Effective % . | . . . . . . . . . Robots Rewired . | . . . . . . . . . Allies Hacked . | . . . . . . . . . Hacks Repelled . | . . . . . . . . . Allies | -11 -10 -10 -9 -9 -9 -7 -7 -7 -------- Run | Yrd Mat Min Mat Sto Rec Fac Low Low Total Allies 5 | . . . . . . 4 . 1 Largest Group 4 | . . . . . . 4 . 1 Highest-Rated Group 146 | . . . . . . 48 . 146 Highest-Rated Ally 146 | . . . . . . 12 . 146 Total Orders . | . . . . . . . . . Ally Attacks 11 | . . . 2 . . 9 . . Total Damage 112 | . . . . . . 112 . . Kills 1 | . . . . . . 1 . . Allies Corrupted . | . . . . . . . . . Allies Melted . | . . . . . . . . . Intel | -11 -10 -10 -9 -9 -9 -7 -7 -7 ------- Run | Yrd Mat Min Mat Sto Rec Fac Low Low Robot Analysis Total 3 | . 1 1 . . . 1 . . Derelict Logs Recovered 2 | . . 1 . . . . 1 . Drone Launches 2 | . . . 2 . . . . . Drone Recoveries . | . . . . . . . . . Exploration | -11 -10 -10 -9 -9 -9 -7 -7 -7 ------------- Run | Yrd Mat Min Mat Sto Rec Fac Low Low Turns Passed 7308 | 75 473 449 841 772 980 2285 1244 189 Spaces Moved 3989 | 47 259 327 378 368 645 1298 580 87 Core 17 | 17 . . . . . . . . Treads 441 | 30 259 152 . . . . . . Legs . | . . . . . . . . . Wheels 3531 | . . 175 378 368 645 1298 580 87 Hover . | . . . . . . . . . Flight . | . . . . . . . . . Fastest Speed 50 | 50 160 80 80 140 145 145 145 130 Average Speed 151 | 120 160 118 139 147 145 145 196 155 Slowest Speed 230 | 160 160 160 215 195 145 160 230 195 Overloaded Moves . | . . . . . . . . . Propulsion Burnouts . | . . . . . . . . . Robots Hopped . | . . . . . . . . . Cave-ins Triggered . | . . . . . . . . . Exploration Rate (%) 50 | 4 41 69 50 59 98 31 83 15 Regions Visited 8 Branch Regions 5 Pre-discovered Areas 1 | . . . . . . . 1 . Known Exits Taken 6 | . 1 . 1 1 1 1 1 . Unknown Exits Taken 2 | 1 . 1 . . . . . . Scrap Searched 1 | . . . . . . . 1 . Spaces Dug 35 | . . . . . . 35 . . Terrain Destroyed 252 | . . 31 13 4 . 168 36 . Melee . | . . . . . . . . . Projectile 13 | . . . . 4 . 8 1 . AOE 239 | . . 31 13 . . 160 35 . Terrain Rammed . | . . . . . . . . . Walls Destroyed . | . . . . . . . . . Machines Disabled . | . . . . . . . . . Actions | -11 -10 -10 -9 -9 -9 -7 -7 -7 --------- Run | Yrd Mat Min Mat Sto Rec Fac Low Low Total 4652 | 62 294 361 538 498 662 1490 631 116 Wait 99 | . 12 1 18 53 1 8 1 5 Move 3981 | 46 258 326 377 367 644 1297 579 87 Hop . | . . . . . . . . . Pick Up 101 | 8 7 7 30 11 1 28 9 . Fast Attach 9 | . . 1 . 1 . 7 . . Attach 61 | 6 1 2 19 1 2 17 8 5 Detach 3 | . . . 2 . . 1 . . Swap 30 | . . 2 5 6 . 10 7 . Drop 39 | . 2 5 6 6 . 18 2 . Fire 319 | 2 14 17 81 53 14 96 25 17 Melee 2 | . . . . . . . . 2 Ram . | . . . . . . . . . Kick . | . . . . . . . . . Crush . | . . . . . . . . . Escape Stasis 8 | . . . . . . 8 . . Rewire . | . . . . . . . . . Trap . | . . . . . . . . . Miscellaneous . | . . . . . . . . . Route ------- -11/Scrapyard -10/Materials (discovered 4 exits: *Mat x2 / *Min x2) -10/Mines -9/Materials (discovered 3 exits: *Mat / *Min / *Sto) -9/Storage (discovered 2 exits: *Mat / *Rec) -9/Recycling -7/Factory (discovered 2 exits: *Fac / *Low) -7/Lower Caves -7/Lower Caves History --------- Turn | Location | Event 27 | -11/Scrapyard | Discovered new exit (range 15) 76 | -11/Scrapyard | Entered Materials 183 | -10/Materials | Central database locked down 285 | -10/Materials | Discovered new exit (range 7) 312 | -10/Materials | Discovered new exit (range 16) 314 | -10/Materials | Build established: Mutant 437 | -10/Materials | Discovered new exit (range 7) 482 | -10/Materials | Discovered new exit (range 14) 511 | -10/Materials | Identified exit to Mines 549 | -10/Materials | Entered Mines 582 | -10/Mines | Assembled infested the area 587 | -10/Mines | Assisted by a Guerilla fighting off Assembled 740 | -10/Mines | Core integrity fell below 50% 779 | -10/Mines | Destroyed 7 combat bots 870 | -10/Mines | Found the Drone Emporium 877 | -10/Mines | Found Prototype Device 986 | -10/Mines | Discovered new exit (range 15) 998 | -10/Mines | Entered Materials 998 | -9/Materials | Evolved 2 slots: Utility x2 998 | -9/Materials | Identified Bomb Drone Bay 1158 | -9/Materials | Repaired Ion Engine 1306 | -9/Materials | Build established: Scavenger-Mutant 1412 | -9/Materials | Core integrity fell below 50% 1442 | -9/Materials | Lost 6 parts (1p2n3u) 1502 | -9/Materials | Discovered new exit (range 9) 1513 | -9/Materials | Identified exit to Materials 1663 | -9/Materials | Discovered new exit (range 13) 1707 | -9/Materials | Identified exit to Mines 1809 | -9/Materials | Discovered new exit (range 9) 1823 | -9/Materials | Identified exit to Storage 1839 | -9/Materials | Entered Storage 1840 | -9/Storage | Identified exit to Recycling 2130 | -9/Storage | Discovered exit to Materials (range 7) 2374 | -9/Storage | Core integrity fell below 20% 2544 | -9/Storage | Build established: Mutant 2605 | -9/Storage | Used back door to open Recycling access 2611 | -9/Storage | Entered Recycling 3565 | -9/Recycling | Discovered new exit (range 16) 3590 | -9/Recycling | Identified exit to Factory 3591 | -9/Recycling | Entered Factory 3591 | -7/Factory | Evolved 4 slots: Utility x3, Weapon x1 3899 | -7/Factory | Build established: Tank 4498 | -7/Factory | Lost 3 parts (1u2w) 4946 | -7/Factory | Fabricated S-27 Virus? 4998 | -7/Factory | Build established: Scavenger-Tank 5199 | -7/Factory | Discovered new exit (range 15) 5246 | -7/Factory | Identified exit to Factory 5296 | -7/Factory | Garrison activated, responded to threat 5433 | -7/Factory | Discovered new exit (range 15) 5453 | -7/Factory | Identified exit to Lower Caves 5478 | -7/Factory | Build established: Tank 5876 | -7/Factory | Entered Lower Caves 6169 | -7/Lower Caves | Core integrity fell below 50% 6361 | -7/Lower Caves | Lost 3 parts (1p1n1u) 6371 | -7/Lower Caves | Discovered new exit (range 10) 6389 | -7/Lower Caves | Identified exit to Lower Caves 6471 | -7/Lower Caves | Build established: Scavenger-Gunner 7120 | -7/Lower Caves | Entered another Lower Caves area 7134 | -7/Lower Caves | Acquired the password to a Derelict Tinkerer's latest research 7233 | -7/Lower Caves | Caught by Unaware searching for contraband prototypes 7297 | -7/Lower Caves | Core integrity fell below 20% 7309 | -7/Lower Caves | Destroyed by H-66 Slayer with Gauss Rifle Last Messages --------------- Wheel destroyed. Wall collapses. Penetrated by Slug. Imp. Cooling System destroyed. Penetrated by Slug. Flak Gun destroyed. Penetrated by Slug. Imp. Heat Sink destroyed. A strange signal echoes through the caves. Penetrated by Slug. Slug penetrates Wall. Penetrated by Slug. Wheel destroyed. Acquired 65 matter. Penetrated by Slug. Arm. Wheel destroyed. Penetrated by Slug. Lgt. Nuclear Core destroyed. H-66 Slayer destroyed. Penetrated by Slug. Map ----- +----------------------------------------------------+ | ?????????????????????????????????????????????????? | | ?????????????????????????????????????????????????? | | ?????????????????????????????????????????????????? | | ?????????????????????????????????????????????????? | | ?????????????????????????????????????????????????? | | ??????????????????????????????????????????####???? | | ???????????????????????????????###???????# ##??# | | ??????????????????????????????## ##?????? ??# | | ????????????????????????####### #?????? ??# | | ???????????????????????## ##????? ??? | | ?????????????????????### #????? #??# | | ?????????????????????# ##??## #?# | | ?????????????????????### ## #### #?# | | ???????????????????????##### #?? | | ???????????????????????????# #??# | | ???????????????????????????# #??# | | ???????????????????????????# #### #### | | ???????????????????????????# ##?## | | ???????????????????????????# #### ##? | | ???????????????????????????# % ## ##? | | ?????????????#####?????????# ### ## | | ????????????## #????##### #?# # | | ????????????# ##### ## ##?## | | ????????????# ## ### ###??## # | | ????????????# %h####### ##????# ### | | ?????????????# @;#????# #?????# ##?? | | ?????????????## ##????# ##?????# #??? | | ??????????????######## #????# #???##### ##?? | | ?????????????????????## ##????## ???## ## #?? | | ??????????????????????# ##??????###### #?? | | ?????????????????????# #??????## ## ##?? | | ???????????????????? #??????# #??? | | ??????????????????? ##??????# ##?? | | ?????????????????# ##???????## #?? | | ???????????????? ????##"??## ####?? | | ??????????????? ????#X ?# ##???? | | ?????????????? #### #?????"" " #### | | ??????????????##????##??????#"""# | | ???????????????????????????????# | | ???????????????????????????????## ## | | ????????????????????????????????# ###### ## | | ????????????????????????????????## ##?????## #?? | | ?????????????????????????????????####????????###?? | | ?????????????????????????????????????????????????? | | ?????????????????????????????????????????????????? | | ?????????????????????????????????????????????????? | | ?????????????????????????????????????????????????? | | ?????????????????????????????????????????????????? | | ?????????????????????????????????????????????????? | | ?????????????????????????????????????????????????? | +----------------------------------------------------+ Best States ------------- Heat Dissipation 75 Energy Generation 16 Energy Capacity 290 Matter Stores 300 Matter Capacity 300 Sight Range 16 Robot Scan Range 14 Terrain Scan Range 16 Terrain Scan Density 10 Armor Coverage 300 Resistance: EX 25 Utility Shielding 33 Evasion (%) 50 Targeting Accuracy 8 Recoil Reduction 2 Offensive Hacking 10 Defensive Hacking 10 Item Schematics ----------------- Bore Cannon | -9/Materials | Scanalyzed Grenade Launcher | -9/Materials | Scanalyzed Ion Engine | -9/Materials | Scanalyzed Sml. Storage Unit | -9/Materials | Scanalyzed Shock Absorption System | -9/Materials | Scanalyzed Lrg. Matter Pod | -9/Materials | Scanalyzed Imp. Ion Engine | -9/Materials | Scanalyzed Lrg. Battery | -9/Materials | Scanalyzed Beam Rifle | -9/Materials | Scanalyzed Datajack | -9/Materials | Scanalyzed Robot Schematics ------------------ S-10 Pest | -9/Recycling | Hacked Fabricated ------------ S-27 Virus | x4 | -7/Factory | Preloaded Alien Tech Used ----------------- None Achievements -------------- None Challenges ------------ None Game ------ Seed MasterMagneticMicroactuators Manual? 0 Play Time 01:04:57 Cumulative 92.4 hours Start 2024.05.11 @ 04:41:45 End 2024.05.11 @ 05:47:53 Sessions 1 Manual Loads 0 Difficulty Rogue Special Mode None Game No. 97 Rogue 88 Adventurer 9 Explorer 0 Win Type - Total 0 Types 0/0/0/0/0/0/0/0/0 Lore% 47 Gallery% 59 Achievement% 44 Wizard Run 0 Options --------- Layout 1 ASCII 0 Keyboard 0 Movement Numpad Keybinds 0 Fullscreen 1 Font 24/Smallcaps Map View 50x35 Zoom Use 0% Tactical HUD 0 Map Filters NONE Filters NONE Steam 1 RUN: 3f3643cf-4dc5-40db-a266-e7b5ffb60106